{"text_format":"1","workbook":"xlsx","n_sheets":13,"sheets":["PerformanceMeasures","Detail","Dashboards","RawDataForAdults","RawDataForAdults_PT","RawDataForBabies","RawDataForBabies_PT","01CAREWareDemographics","02CAREWareRelationships","11DemographicsFor2429","12BackgroundFor2429","13PrenatalFor2429","14ParentChildFor2429"],"not_rendered":{"charts":18,"images":2,"macros":1,"external_links":0,"defined_names":10,"comments":0,"pivot_tables":2},"unopened":[],"bounds":{"document_bytes":16777216,"sheet_cells":100000,"rows_first":2000,"rows_last":500,"rows_between":2000,"halvings":0,"cell_chars":16384,"cell_head_chars":4096},"cells_cut":0,"cells_raw":0,"read":"whole","date_system":"1900"}

{"sheet":"PerformanceMeasures","index":0,"n_rows":76,"n_cols":14,"rows_kept":76,"cut":false,"hidden":false,"merged":[[10,0,13,0],[10,1,13,1],[10,2,13,2],[10,3,13,3],[10,4,13,4],[7,0,9,0],[7,1,9,1],[7,2,9,2],[7,3,9,3],[7,4,9,4],[18,0,19,0],[18,1,19,1],[18,2,19,2],[18,3,19,3],[18,4,19,4],[16,0,17,0],[16,1,17,1],[16,2,17,2],[16,3,17,3],[16,4,17,4],[20,4,21,4],[25,0,26,0],[25,1,26,1],[25,2,26,2],[25,3,26,3],[25,4,26,4],[28,0,29,0],[28,1,29,1],[28,2,29,2],[28,3,29,3],[20,0,21,0],[20,1,21,1],[20,2,21,2],[20,3,21,3],[51,0,52,0],[51,1,52,1],[51,2,52,2],[51,3,52,3],[51,4,52,4],[56,4,57,4],[56,3,57,3],[56,2,57,2],[56,1,57,1],[56,0,57,0],[59,4,60,4],[59,3,60,3],[59,2,60,2],[59,0,60,0],[59,1,60,1],[62,4,63,4],[62,3,63,3],[62,2,63,2],[62,1,63,1],[62,0,63,0]]}
["Benchmarks - Healthy Start Performance Measures (NOFO HRSA-19-049)"]
[]
["Period Start Date","2025-01-01"]
["Period End Date","2025-12-31"]
["Calculate Age Base Date","2025-06-30"]
["Processed On","2026-02-25"]
["Sno","Performance Measure Description","Benchmark","DGIS Measure","Goal (Target)","Performance\nMeasure","Performance Measures Definition","Numerator","Denominator","Percentage","Target","Target Difference","Baseline","Baseline Difference"]
[1,"The percent of programs meeting the stated aims of their grant at the end of the current grant cycle","Grant Impact","Core 1","To ensure that planned grant impact was met.",null,"Have you met the planned objectives as stated at the beginning of the grant cycle?\nPrepopulated with the objectives from FOA:"]
[null,null,null,null,null,{"$f":"$D8&\" a\"","v":"Core 1 a"},"Did you meet objective 1?","Y/N",null,null,"Y"]
[null,null,null,null,null,{"$f":"$D8&\" b\"","v":"Core 1 b"},"Did you meet objective 2?","Y/N",null,null,"Y"]
[2,"The percent of programs engaging in quality improvement and through what means, and related outcomes.","Quality Improvement","Core 2","To measure quality improvement initiatives.",null,"What are the related outcomes?"]
[null,null,null,null,null,{"$f":"$D11&\" a\"","v":"Core 2 a"},"Is there data to support improvement in population health as a result of the QI activities?","Y/N"]
[null,null,null,null,null,{"$f":"$D11&\" b\"","v":"Core 2 b"},"Is there data to support organizational improvement as a result of QI activities?","Y/N"]
[null,null,null,null,null,{"$f":"$D11&\" c\"","v":"Core 2 c"},"Is there data to support improvement in cross sectorial collaboration as a result of QI activities?","Y/N"]
[3,"The percent of programs promoting and/ or facilitating improving\nhealth equity.","Health Equity","Core 3","To ensure MCHB grantees have established specific aims related to improving health equity.",{"$f":"$D15","v":"Core 3"},"% of programs that met stated goals/ objectives around health equity\nNumerator: # of programs that met stated specific aims around health equity\nDenominator: # of programs that set specific aims around health equity"]
[4,"The percent of MCHB funded initiatives working to promote sustainability of their programs or initiatives beyond the life of MCHB funding.","Sustainability","CB 4","To ensure sustainability of programs or initiatives over time, beyond the duration of MCHB funding.",{"$f":"$D16","v":"CB 4"},"What are the related outcomes?\n% of grants that have sustainability plans"]
[5,"The percent of programs promoting and/ or facilitating well-child visits.","Well-Child Visit","CH 1","Increase the proportion of HS child participants who receive the last age-appropriate recommended well child visit based on the AAP schedule to 90 percent",{"$f":"$D17&\" a\"","v":"CH 1 a"},"% of children who received a well care visit in the reporting year\nNumerator: Child program participants who received a well care visit in the reporting year\nDenominator: Child program participants in the reporting year",0,0,{"$f":"IFERROR(($H17/$I17), 0)","v":0},0.9,{"$f":"$J17-K17","v":-0.9},0.9,{"$f":"$J17-M17","v":-0.9}]
[null,null,null,null,null,{"$f":"$D17&\" b\"","v":"CH 1 b"},"% of children enrolled in Medicaid/ CHIP with at least one well care visit in the past year\nNumerator: Medicaid/ CHIP-enrolled child program participants who received a well-child visit in the reporting year.\nDenominator: Medicaid/ CHIP-enrolled child program participants in the reporting year",0,0,{"$f":"IFERROR(($H18/$I18), 0)","v":0},0.9,-0.9,0.9,-0.9]
[6,"The percent of programs promoting and/ or facilitating adequate health insurance coverage.","Adequate Health Insurance Coverage","LC 1","Increase the proportion of HS women and child participants with health insurance to 90 percent (reduce uninsured to less than 10 percent).",{"$f":"$D19&\" a\"","v":"LC 1 a"},"% with health insurance\nNumerator: Number of HS women participants with health insurance as of last assessment in the reporting period.\nDenominator: Number of total women HS participants in the reporting period.",0,0,{"$f":"IFERROR(($H19/$I19), 0)","v":0},0.9,-0.9,0.9,-0.9]
[null,null,null,null,null,{"$f":"$D19&\" b\"","v":"LC 1 b"},"% with health insurance\nNumerator: Number of Healthy Start (HS) child participants whose parent/ caregiver reports that the child has health insurance as of the last assessment in the reporting period.\nDenominator: Number of total child HS participants in the reporting period.",0,0,0,0.9,-0.9,0.9,-0.9]
[7,"The percent of programs promoting and/ or facilitating tobacco and eCigarette cessation.","Tobacco and eCigarette Use","LC 2","Increase the proportion of pregnant HS participants that abstain from cigarette smoking to 90 percent.",{"$f":"$D21&\" a\"","v":"LC 2 a"},"% of prenatal women who abstain from smoking\nNumerator: Number of Healthy Start prenatal women participants who abstained from using any tobacco products during the last 3 months of pregnancy.\nDenominator: Total number of Healthy Start prenatal women participants who were enrolled at least 90 days before delivery.",0,0,0,0.9,-0.9,0.9,-0.9]
[null,null,null,null,null,{"$f":"$D21&\" b\"","v":"LC 2 b"},"% of prenatal women who stopped smoking during pregnancy\nNumerator: Number of program participants who stopped smoking cigarettes (including all tobacco products and e-cigarettes) during their pregnancy.\nDenominator: Number of program prenatal participants who smoked at the beginning of their pregnancy.",0,0,0,0.9,-0.9,0.9,-0.9]
[8,"The percent of programs promoting and/or facilitating timely prenatal care.","Prenatal Care","WMH 1","To ensure supportive programming for prenatal care.",{"$f":"$D23","v":"WMH 1"},"% of pregnant women who receive prenatal care beginning in the first trimester\nNumerator: Pregnant program participants who began prenatal care in the first trimester of pregnancy.\nDenominator: Pregnant program participants who were enrolled prenatally.",0,0,0,0.9,-0.9,0.9,-0.9]
[9,"The percent of programs promoting and/ or facilitating timely postpartum care.","Perinatal/ Postpartum Care","WMH 2","Increase the proportion of HS women participants who receive a postpartum visit to 80 percent.",{"$f":"$D24","v":"WMH 2"},"% of women with a postpartum visit \nNumerator: Number of Healthy Start women participants who enrolled prenatally or within 30 days after delivery and received a postpartum visit between 4-6 weeks after delivery\nDenominator: Number of Healthy Start women participants who enrolled prenatally or within 30 days after delivery during the reporting period.",0,0,0,0.9,-0.9,0.9,-0.9]
[10,"The percent of programs promoting and/ or facilitating well woman visits/ preventive health care.","Well Woman Visit/ Preventive Health","WMH 3","The percent of Healthy Start women participants who have a well- woman visit.","WMH 3","% of women with a well woman/ preventative visit in the past year.\nNumerator: Women program participants who received a well-woman or preventive visit in the past 12 months (includes prenatal and postpartum visit)\nDenominator: Women program participants",0,0,0,0.9,-0.9,0.9,-0.9]
[11,"The percent of programs promoting and/ or facilitating depression screening.","Depression Screening","WMH 4","Increase the proportion of HS women participants who receive depression screening and referral to 100 percent.",{"$f":"$D26&\" a\"","v":"WMH 4 a"},"% of women screened for depression using a validated tool\nNumerator: Program participants included in the denominator who were screened for depression using a validated tool within the reporting period\nDenominator: Women program participants",0,0,0,0.9,-0.9,0.9,-0.9]
[null,null,null,null,null,{"$f":"$D26&\" b\"","v":"WMH 4 b"},"% of women who screened positive for depression who receive a referral for services\nNumerator: Women program participants who screened positive for depression who received a referral for services.\nDenominator: Women program participants who screened positive for depression.",0,0,0,0.9,-0.9,0.9,-0.9]
[12,"The percent of program participants who engage in safe sleep practices.","Safe Sleep","PIH 1","Increase the proportion of HS women participants who engage in safe sleep practices to 80 percent.",{"$f":"$D28","v":"PIH 1"},"% of infants placed to sleep following safe sleep practices \nNumerator: Number of child program participants (aged 0-12 months) whose parent reports that they are most often or always placed to sleep following safe sleep practices.\nDenominator: Number of child program participants aged 0 to 12 months old.",0,0,0,0.9,-0.9,0.9,-0.9]
[13,"The percent of programs promoting and/ or facilitating breastfeeding.","Breastfeeding","PIH 2","Increase the proportion of HS child participants whose parent/ caregiver reports they were ever breastfed or pumped breast milk to feed their baby to 82 percent.",{"$f":"$D29&\" a\"","v":"PIH 2 a"},"% of infants who are ever breastfed\nNumerator: Total number of HS child participants aged <12 months whose parent was enrolled prenatally or at the time of delivery who were ever breastfed or fed pumped breast milk.\nDenominator: Total number of HS child participants aged <12 months whose parent was enrolled prenatally or at the time of delivery.",0,0,0,0.9,-0.9,0.9,-0.9]
[null,null,null,null,"Increase the proportion of HS child participants whose parent/ caregiver reports they were breastfed or fed breast milk at 6 months to 61 percent.",{"$f":"$D29&\" b\"","v":"PIH 2 b"},"% of infants breastfed through 6 months\nNumerator: Total number of HS child participants age 6 through 11 months whose parent was enrolled prenatally or at the time of delivery that were breastfed or were fed pumped breast milk in any amount at 6 months of age.\nDenominator: Total number of HS child participants age 6 through 11 months whose parent was enrolled prenatally or at the time of delivery.",0,0,0,0.9,-0.9,0.9,-0.9]
[14,"The percent of Healthy Start participants that have a documented reproductive life plan.","Reproductive Life Plan","HS 01","Increase the proportion of HS women participants who have a documented reproductive life plan to 90 percent.",{"$f":"$D31","v":"HS 01"},"Numerator: Number of Healthy Start (HS) women participants with a documented reproductive life plan.\nDenominator: Number of HS women participants.",0,0,0,0.9,-0.9,0.9,-0.9]
[15,"The percent of Healthy Start women and child participants that have a usual source of care.","Usual Source of Care","HS 02 a","The percent of Healthy Start (HS) women and child participants who have a usual source of medical care.","HS 02 a","Numerator: Total number of HS women participants that report having a usual source of care as of the last assessment in the reporting period.\nDenominator: Total number of women HS participants in the reporting period.",0,0,0,0.9,-0.9,0.9,-0.9]
[15,"The percent of Healthy Start women and child participants that have a usual source of care.","Usual Source of Care","HS 02 b","The percent of Healthy Start (HS) women and child participants who have a usual source of medical care.","HS 02 b","Numerator: Total number of Healthy Start (HS) child participants whose parent/caregiver reports that they have a usual source of care as of the last assessment in the reporting period.\nDenominator: Total number of child HS participants in the reporting period.",0,0,0,0.9,-0.9,0.9,-0.9]
[16,"The percent of Healthy Start women participants who conceive within 18 months of a previous birth.","Interconception Planning","HS 03","Reduce the proportion of HS women participants who conceive within 18 months of a previous birth to 30 percent.","HS 03","Numerator: Number of Healthy Start (HS) women participants whose pregnancy during the reporting period was conceived within 18 months of the previous live birth.\nDenominator: Total number of HS women participants enrolled before the current pregnancy in the reporting period who had a prior pregnancy that ended in live birth.",0,0,0,0.9,-0.9,0.9,-0.9]
[17,"The percent of Healthy Start women participants with elective delivery before 39 weeks.","Early Elective Delivery","HS 04 Not to be used","To reduce the proportion of Healthy Start women participants with elective delivery before 39 weeks to 10%.","HS 04 Not to be used","Numerator: Number of Healthy Start (HS) women participants with elective delivery (i.e., exclude medically necessary delivery) before 39 weeks.\nDenominator: Total number of HS women participants enrolled prenatally who gave birth.",0,0,0,0.9,-0.9,0.9,-0.9]
[18,"The percent of HS women participants who receive intimate partner violence screening.","Intimate Partner Violence Screening","HS 04","Increase the proportion of HS women participants who receive intimate partner violence (IPV) screening to 100 percent.","HS 04","Numerator: Number of Healthy Start (HS) women participants who received intimate partner violence screening using a standardized screening tool during the reporting period.\nDenominator: Total number of HS women participants.",0,0,0,0.9,-0.9,0.9,-0.9]
[19,"The percent of Healthy Start women participants that demonstrate father and/or partner involvement during pregnancy.","Father/ Partner Involvement during pregnancy","HS 05","Increase the proportion of HS women participants that demonstrate father and/or partner involvement (e.g., attend appointments, classes, etc.) during pregnancy to 90 percent.","HS 05","Numerator: Number of Healthy Start (HS) prenatal participants who report supportive father and/or partner involvement (e.g., attend appointments, classes, etc.) as of last HS contact.\nDenominator: Total number HS prenatal participants.",0,0,0,0.9,-0.9,0.9,-0.9]
[20,"The percent of Healthy Start participants with father and/or partner involvement with child 0-24 months.","Father and/or Partner Involvement with child 0-24 Months","HS 06","Increase the proportion of HS women participants that demonstrate father and/or partner involvement (e.g. attend appointments, classes, infant/child care) with their child participant to 80 percent.","HS 06","Numerator: Number of Healthy Start (HS) child participants whose mother reports supportive father and/or partner involvement (e.g., attend appointments, classes, child care, etc.) as of the last HS contact.\nDenominator: Total number child participants aged 0 to 24 months.",0,0,0,0.9,-0.9,0.9,-0.9]
[21,"The percent of Healthy Start child participants aged 0-24 months who are read to 5 or more times per week, on average.","Daily Reading","HS 07","Increase the proportion of HS child participants aged <24 months who are read to by a parent or family member 3 or more times per week to 50 percent.","HS 07","Numerator: Number of Healthy Start children participants whose parent/ caregiver reports that they were read to by a family member on 3 or more days during the past week during the reporting period.\nDenominator: Total number of Healthy Start child participants 6 through 23 months of age during the reporting period.",0,0,0,0.9,-0.9,0.9,-0.9]
[22,"The percent of Healthy Start grantees with a fully implemented Community Action Network (CAN).","CAN implementation","HS 08","To increase the proportion of HS grantees with a fully implemented Community Action Network (CAN) to 100%.","HS 08","Numerator: Number of related CAN measure components implemented by the CAN in which the Healthy Start grantee participates.\nDenominator: 3 (representing total of CAN components)",0,0,0,0.9,-0.9,0.9,-0.9]
[23,"The percent of Healthy Start grantees with at least 25% community members and Healthy Start program participants serving as members of their CAN.","CAN participation","HS 09","To increase the proportion of Healthy Start grantees with at least 25% community members and Healthy Start program participants serving as members of their CAN to 100%.","HS 09","Numerator: Number of community members and Healthy Start (HS) program participants serving as\nmembers of the CAN.\nDenominator: Total number of individual members serving on the CAN.",0,0,0,0.9,-0.9,0.9,-0.9]
[null,null,null,null,null,"1a","Number of Live Births\nNumerator: Singleton Births only\nDenominator: All Births (including multiples)",0,0,0,0.9,{"$f":"$J42-K42","v":-0.9},0.9,{"$f":"$J42-M42","v":-0.9}]
[null,null,null,null,null,"1b","Number of low Birthweight Births\n(less than 5lbs 8ozs or 2500 gms)\nNumerator: Singleton Births only\nDenominator: All Births (including multiples)",0,0,0,0.9,-0.9,0.9,-0.9]
[null,null,null,null,null,"1c","Number of Pre-Term Births\n(less than 37 weeks of gestation)\nNumerator: Singleton Births only\nDenominator: All Births (including multiples)",0,0,0,0.9,-0.9,0.9,-0.9]
[null,null,null,null,null,2,"Number of Infant Deaths\n(Death of Infants less than 1 year in age)\nNumerator: Infant Deaths\nDenominator: All Births (including multiples)",0,0,0,0.9,-0.9,0.9,-0.9]
[null,null,null,null,null,"LC 2a2","% of Program Participants, who abstain from smoking\nNumerator: Number of Healthy Start Program Participants, who do not smoke cigarettes as of their last contact in the Reporting Year\nDenominator: Total number of Healthy Start Program Participants",0,0,0,0.9,{"$f":"$J46-K46","v":-0.9},0.9,{"$f":"$J46-M46","v":-0.9}]
[null,null,null,null,null,null,null,0,0]
[null,null,null,null,null,null,null,0,0]
[null,null,null,null,null,null,null,0,0]
[null,null,null,null,null,null,null,0,0]
[null,"For 2024 to 29",null,null,null,null,null,0,0]
[1,"The percent of HS women participants who receive interpersonal violence screening and referral",null,"HS 04","Interpersonal Violence Screening and Referral\nTo increase the proportion of Healthy Start women participants who receive interpersonal violence (IPV) screening to 90%; of those who screen positive for IPV, increase proportion who receive referrals to 95%","HS 04a","Numerator: Number of HS women participants who received interpersonal violence screening using a standardized screening tool during the reporting period\nDenominator: Total number of HS women participants in the reporting period.",0,0,{"$f":"IFERROR(($H52/$I52), 0)","v":0},0.9,{"$f":"$J52-$K52","v":-0.9},0.9,{"$f":"$J52-$M52","v":-0.9}]
[null,null,null,null,null,"HS 04b","Numerator: Number of HS women participants who screened positive for IPV during the reporting period and received a subsequent referral for follow-up services\nDenominator: Number of HS women participants who screened positive for IPV during the reporting period",0,0,0,0.95,{"$f":"$J53-$K53","v":-0.95},0.9,{"$f":"$J53-$M53","v":-0.9}]
[2,"The percent of pregnant HS participants who receive prenatal care beginning in the first trimester",null,"HS 10","Prenatal Care\nTo increase the proportion of pregnant HS participants who receive prenatal care in the first trimester to 80 percent","HS 10","Numerator: Number of pregnant HS participants who began prenatal care in the first trimester of pregnancy\nDenominator: Number of pregnant HS participants who had enrolled prenatally, prior to their second trimester of pregnancy",0,0,0,0.8,-0.8,0.9,-0.9]
[3,"The percent of pregnant / newly postpartum HS participants who received a postpartum visit within 12 weeks of delivery",null,"HS 11","Perinatal / Postpartum Care\nTo increase the proportion of HS women participants who receive a postpartum visit to 80 percent","HS 11","Numerator: The number of pregnant / newly postpartum HS participants, who had enrolled prenatally or within 30 days after delivery, and received a comprehensive postpartum visit within 12 weeks after delivery\nDenominator: The number of HS participants who enrolled prenatally or within 30 days after delivery",0,0,0,0.8,-0.8,0.9,-0.9]
[4,"The percent of HS women participants with a well-woman / preventive visit in the past year",null,"HS 12","Well Woman Visit / Preventive Health\nTo increase the proportion of HS women participants that receive a well-woman / preventive visit in the past year to 80\npercent","HS 12","Numerator: Number of HS women participants within the reporting period who received a well-woman or preventive visit (including prenatal or postpartum visit) in the past 12 months prior to last assessment\nDenominator: Total number of HS women participants during the reporting period",0,0,0,0.8,-0.8,0.9,-0.9]
[5,"The percent of HS women participants who receive depression screening and referral",null,"HS 13","Depression Screening and Referral\nTo increase the proportion of HS women participants who receive depression screening to 90%; of those who screen positive for depression, increase the proportion who receive a referral to 95%","HS 13a","Numerator: Number of HS women participants who were screened for depression with a validated tool during the reporting period\nDenominator: Number of HS women participants in the reporting period",0,0,0,0.9,-0.9,0.9,-0.9]
[null,null,null,null,null,"HS 13b","Numerator: Number of women participants who screened positive for depression during the reporting period and received a subsequent referral for follow-up services\nDenominator: Number of HS women participants who screened positive for depression during the reporting period",0,0,0,0.95,-0.95,0.9,-0.9]
[6,"Percent of HS infants placed to sleep following safe sleep practices",null,"HS 14","Safe Sleep\nTo increase the proportion of HS infants placed to sleep following safe sleep practices to 80%","HS 14","Numerator: Number of HS infant participants aged <12 months, whose parent / caregiver reports that they are always or most often placed to sleep following all three AAP recommended safe sleep practices\nDenominator: Total number of HS infant participants aged <12 months",0,0,0,0.8,-0.8,0.9,-0.9]
[7,"The percent of HS infant participants who were ever breastfed or fed pumped breast milk, and / or were fed breast milk at 6 months of age",null,"HS 15","Breastfeeding\nTo increase the proportion of HS infant participants who were:\n• ever breastfed or fed pumped breast milk to 82 percent.\n• breastfed or fed pumped breast milk at 6 months to 50 percent","HS 15a","Numerator: Total number of HS infant participants aged <12 months, who were ever breastfed or fed pumped breast milk, and whose parent was enrolled prenatally\nDenominator: Total number of HS infant participants aged <12 months, whose parent was enrolled prenatally",0,0,0,0.82,-0.82,0.9,-0.9]
[null,null,null,null,null,"HS 15b","Numerator: Total number of HS infant participants ages 6 through 11 months, who were breastfed or were fed pumped breast milk in any amount at 6 months of age, and whose parent was enrolled prenatally\nDenominator: Total number of HS infant participants ages 6 through 11 months, whose parent was enrolled prenatally",0,0,0,0.5,-0.5,0.9,-0.9]
[8,"The percent of HS child participants, who received well-child visits",null,"HS 16","Well Child Visit\nTo increase the proportion of HS child participants who received the last age-appropriate recommended well-child visit based on AAP schedule to 90 percent","HS 16","Numerator: Number of HS child participants whose parent / caregiver reports that they received the last recommended well-child visit based on the AAP schedule well-child visit as of the last assessment within the reporting period\nDenominator: Total number of HS child participants in the reporting period",0,0,0,0.9,-0.9,0.9,-0.9]
[9,"The percent of HS women and child participants with health insurance coverage",null,"HS 17","Health Insurance Coverage\nTo increase the proportion of HS women and child participants with health insurance to 90 percent (reduce uninsured to less than 10 percent)","HS 17a","Numerator: Number of HS women participants with health insurance as of the last assessment during the reporting period\nDenominator: Total number of HS women participants during the reporting period",0,0,0,0.9,-0.9,0.9,-0.9]
[null,null,null,null,null,"HS 17b","Numerator: Number of HS child participants with health insurance as of the last assessment during the reporting period\nDenominator: Total number of HS child participants during the reporting period",0,0,0,0.9,-0.9,0.9,-0.9]
[10,"The percent of prenatal HS participants who abstain from smoking cigarettes, or using any tobacco products, in their third trimester",null,"HS 18","Prenatal Tobacco and eCigarette Use\nTo increase the proportion of pregnant HS participants that abstain from cigarette smoking, or using any tobacco products, to 90 percent","HS 18","Numerator: Number of prenatal Healthy Start participants who abstained from using any tobacco products during their third trimester (i.e., last 3 months of pregnancy)\nDenominator: Total number of prenatal Healthy Start participants who were enrolled at least 90 days before delivery",0,0,0,0.9,-0.9,0.9,-0.9]
[11,"The percent of low birthweight infants among all singleton live births to Healthy Start participants",null,"HS 19","Low Birthweight\nTo reduce the proportion of low birthweight infants among all singleton live births to HS participants","HS 19","Numerator: Number of singleton live births with birth weight less than 2,500 grams in the calendar year among HS participants\nDenominator: Total number of singleton live births in the calendar year among HS participants",0,0,0,0,0,0,0]
[12,"The percent of infants born preterm (delivery prior to 37 completed weeks of gestation) among all singleton live births to Healthy Start participants",null,"HS 20","Preterm Birth\nTo reduce the proportion of infants born preterm among all singleton live births to HS participants","HS 20","Numerator: Number of singleton infants born preterm (delivery prior to 37 completed weeks of gestation) in the calendar year among HS participants\nDenominator: Total number of singleton live births in the calendar year among HS participants",0,0,0,0,0,0,0]
[13,"The infant mortality rate (per 1,000 live births) of enrolled Healthy Start (HS) infants",null,"HS 21","Infant Mortality\nTo reduce infant death among enrolled Healthy Start participants","HS 21","Numerator: Number of deaths of enrolled HS infants (from birth through 364 days of age to HS participants in the calendar year)\nDenominator: Total number of live births in the calendar year among HS participants",0,0,{"$f":"IFERROR((($H68/$I68)*1000), 0)","v":0},0,0,0,0]
[]
[]
[]
[]
[null,null,null,null,null,"Obj 01","Local Objective 01"]
[null,null,null,null,null,"Obj 02","Local Objective 02"]
[null,null,null,null,null,"Obj 03","Local Objective 03"]
[null,null,null,null,null,"Obj 04","Local Objective 04"]

{"sheet":"Detail","index":1,"n_rows":0,"n_cols":0,"rows_kept":0,"cut":false,"hidden":false,"merged":[]}

{"sheet":"Dashboards","index":2,"n_rows":0,"n_cols":0,"rows_kept":0,"cut":false,"hidden":false,"merged":[]}

{"sheet":"RawDataForAdults","index":3,"n_rows":0,"n_cols":0,"rows_kept":0,"cut":false,"hidden":true,"merged":[]}

{"sheet":"RawDataForAdults_PT","index":4,"n_rows":10,"n_cols":8,"rows_kept":10,"cut":false,"hidden":true,"merged":[]}
[]
[]
["Count of PPUID","Column Labels"]
["Row Labels","AmericanIndian","Asian","Black","NativeHawaiian","RaceDeclined","White","Grand Total"]
["Declined to answer",null,null,8,null,null,1,9]
["On his or her back",null,1,306,4,40,94,445]
["On his or her side",null,null,26,4,3,7,40]
["On his or her stomach",null,null,1,null,null,null,1]
["(blank)",2,3,484,8,38,110,645]
["Grand Total",2,4,825,16,81,212,1140]

{"sheet":"RawDataForBabies","index":5,"n_rows":0,"n_cols":0,"rows_kept":0,"cut":false,"hidden":true,"merged":[]}

{"sheet":"RawDataForBabies_PT","index":6,"n_rows":13,"n_cols":8,"rows_kept":13,"cut":false,"hidden":true,"merged":[]}
[]
[]
["Count of PPUID","Column Labels"]
["Row Labels","AmericanIndian","Asian","Black","NativeHawaiian","RaceDeclined","White","Grand Total"]
["CALIPSO, GRAZIELA",1,2,165,null,11,15,194]
["HOYOS, JULIANA",null,null,115,null,37,82,234]
["JAMEION, SHELLYANN",null,2,157,2,7,29,197]
["JAMEISON, SHELLYANN",null,null,17,1,null,4,22]
["LUBIN, JERLYNE",null,null,176,null,null,32,208]
["PIRRE-CHARLES, WITCHELLE",null,null,69,10,5,22,106]
["SKERVIN, kAY-ANN",1,null,125,3,10,28,167]
["(blank)",null,null,1,null,11,null,12]
["Grand Total",2,4,825,16,81,212,1140]

{"sheet":"01CAREWareDemographics","index":7,"n_rows":0,"n_cols":0,"rows_kept":0,"cut":false,"hidden":true,"merged":[]}

{"sheet":"02CAREWareRelationships","index":8,"n_rows":0,"n_cols":0,"rows_kept":0,"cut":false,"hidden":true,"merged":[]}

{"sheet":"11DemographicsFor2429","index":9,"n_rows":0,"n_cols":0,"rows_kept":0,"cut":false,"hidden":true,"merged":[]}

{"sheet":"12BackgroundFor2429","index":10,"n_rows":0,"n_cols":0,"rows_kept":0,"cut":false,"hidden":true,"merged":[]}

{"sheet":"13PrenatalFor2429","index":11,"n_rows":0,"n_cols":0,"rows_kept":0,"cut":false,"hidden":true,"merged":[]}

{"sheet":"14ParentChildFor2429","index":12,"n_rows":0,"n_cols":0,"rows_kept":0,"cut":false,"hidden":true,"merged":[]}